lending/lending_fUSD_20260204
["ID","MTS","AMOUNT","RATE_DAILY","PERIOD"]
[404482416,1770195044930,-151.0,0.00014264,2]
[404482417,1770195044940,-1000.0,0.00014264,2]
[404482418,1770195044950,-1000.0,0.00014264,2]
[404482419,1770195044959,-1000.0,0.00014264,2]
[404482420,1770195044969,-901.74278119,0.00014264,2]
[404482421,1770195044979,-2000.0,0.00014264,2]
[404482422,1770195044989,-2000.0,0.00014264,2]
[404482423,1770195045000,-2000.0,0.00014264,2]
[404482424,1770195045011,-2000.0,0.00014264,2]
[404482425,1770195045020,-2000.0,0.00014264,2]
[404482426,1770195045030,-2000.0,0.00014264,2]
[404482427,1770195045040,-233.51889341,0.00014278,2]
[404482428,1770195045050,-4093.62846889,0.00014291,2]
[404482429,1770195045059,-630.0,0.00014293,2]
[404482430,1770195045070,-422.0,0.00014293,2]
[404482431,1770195045080,-1287.0,0.00014293,2]
[404482432,1770195045090,-500.0,0.00014293,2]
[404482433,1770195045099,-1112.0,0.00014293,2]
[404482434,1770195045295,-709.0,0.00014293,2]
[404482435,1770195045306,-692.0,0.00014293,2]
[404482436,1770195045316,-820.0,0.00014293,2]
[404482437,1770195045327,-614.0,0.00014293,2]
[404482438,1770195045337,-649.0,0.00014293,2]
[404482439,1770195045347,-754.0,0.00014293,2]
[404482440,1770195045357,-178.6,0.00014301,2]
[404482441,1770195045367,-1000.0,0.00014307,2]
[404482442,1770195045377,-242.15909246,0.00014333,2]
[404482443,1770195045387,-630.0,0.00014348,2]
[404482444,1770195045396,-422.0,0.00014348,2]
[404482445,1770195045406,-1287.0,0.00014348,2]
[404482446,1770195045417,-500.0,0.00014348,2]
[404482447,1770195045427,-1112.0,0.00014348,2]
[404482448,1770195045437,-709.0,0.00014348,2]
[404482449,1770195045448,-692.0,0.00014348,2]
[404482450,1770195045458,-820.0,0.00014348,2]
[404482451,1770195045468,-614.0,0.00014348,2]
[404482452,1770195045478,-649.0,0.00014348,2]
[404482453,1770195045487,-754.0,0.00014348,2]
[404482454,1770195045497,-157.02,0.0001438,2]
[404482455,1770195045506,-257.16,0.00014384,2]
[404482456,1770195045516,-251.11897888,0.00014388,2]
[404482457,1770195045527,-200.0,0.00014388,2]
[404482458,1770195045537,-630.0,0.00014403,2]
[404482459,1770195045546,-422.0,0.00014403,2]
[404482460,1770195045556,-1287.0,0.00014403,2]
[404482461,1770195045565,-500.0,0.00014403,2]
[404482462,1770195045575,-1112.0,0.00014403,2]
[404482463,1770195045585,-692.0,0.00014403,2]
[404482465,1770195045594,-709.0,0.00014403,2]
[404482467,1770195045604,-820.0,0.00014403,2]
[404482468,1770195045613,-614.0,0.00014403,2]
[404482469,1770195045623,-649.0,0.00014403,2]
[404482470,1770195045631,-754.0,0.00014403,2]
[404482471,1770195045641,-175.34,0.00014403,2]
[404482472,1770195045650,-500.0,0.00014403,2]
[404482473,1770195045659,-433.36,0.00014413,2]
[404482474,1770195045669,-150.0,0.00014421,7]
[404482475,1770195045678,-249.207949,0.00014421,7]
[404482476,1770195045688,-348.415899,0.00014421,7]
[404482477,1770195045698,-447.623849,0.00014421,7]
[404482478,1770195045707,-546.831799,0.00014421,7]
[404482479,1770195045717,-646.039749,0.00014421,7]
[404482480,1770195045726,-745.247699,0.00014421,7]
[404482481,1770195045735,-844.455649,0.00014421,7]
[404482482,1770195045744,-943.663599,0.00014421,7]
[404482483,1770195045753,-1042.871549,0.00014421,7]
[404482484,1770195045763,-166.66,0.00014423,2]
[404482485,1770195045772,-260.4103811,0.00014443,2]
[404482486,1770195045781,-158.15478648,0.00014457,2]
[404482487,1770195045791,-500.0,0.00014457,2]
[404482488,1770195045800,-630.0,0.00014458,2]
[404482489,1770195045809,-422.0,0.00014458,2]
[404482490,1770195045818,-1287.0,0.00014458,2]
[404482491,1770195045827,-500.0,0.00014458,2]
[404482492,1770195045837,-1112.0,0.00014458,2]
[404482493,1770195045846,-692.0,0.00014458,2]
[404482494,1770195045855,-709.0,0.00014458,2]
[404482495,1770195045864,-820.0,0.00014458,2]
[404482496,1770195045874,-614.0,0.00014458,2]
[404482497,1770195045883,-649.0,0.00014458,2]
[404482498,1770195045893,-754.0,0.00014458,2]
[404482499,1770195045902,-270.0455652,0.00014498,2]
[404482500,1770195045911,-630.0,0.00014512,2]
[404482501,1770195045921,-422.0,0.00014512,2]
[404482502,1770195045932,-1287.0,0.00014512,2]
[404482503,1770195045941,-500.0,0.00014512,2]
[404482504,1770195045951,-1112.0,0.00014512,2]
[404482505,1770195045960,-692.0,0.00014512,2]
[404482506,1770195045970,-709.0,0.00014512,2]
[404482507,1770195045979,-820.0,0.00014512,2]
[404482508,1770195045989,-614.0,0.00014512,2]
[404482509,1770195045998,-649.0,0.00014512,2]
[404482510,1770195046007,-754.0,0.00014512,2]
[404482512,1770195046016,-8980.0,0.00014515,2]
[404482513,1770195046026,-280.03725112,0.00014553,2]
[404482514,1770195046035,-164.1,0.00014559,2]
[404482515,1770195046045,-260.43690417,0.00014567,2]
[404482516,1770195046054,-642.30370986,0.00014567,2]
[404482517,1770195046063,-442.46949041,0.00014567,2]
[404482518,1770195046072,-1289.40140275,0.00014567,2]
[404482519,1770195046082,-500.0,0.00014567,2]
[404482520,1770195046091,-1126.41748216,0.00014567,2]
[404482521,1770195046100,-709.0771888,0.00014567,2]
[404482522,1770195046110,-711.47692943,0.00014567,2]
[404482523,1770195046119,-830.53646918,0.00014567,2]
[404482524,1770195046128,-481.40818404,0.00014567,2]
[404482525,1770195046137,-657.05274747,0.00014567,2]
[404482526,1770195046147,-763.0,0.00014567,2]
[404482527,1770195046157,-501.49267826,0.000146,2]
[404482528,1770195046167,-290.39862941,0.00014608,2]
[404482529,1770195046177,-200.0,0.00014619,2]
[404482530,1770195046187,-500.0,0.00014622,2]
[404482531,1770195046197,-1267.0,0.00014653,2]
[404482532,1770195046207,-1267.0,0.00014656,2]
[404482533,1770195046216,-150.0,0.0001466,7]
[404482534,1770195046226,-213.115574,0.0001466,7]
[404482535,1770195046236,-276.231149,0.0001466,7]
[404482536,1770195046248,-339.346724,0.0001466,7]
[404482537,1770195046261,-402.462299,0.0001466,7]
[404482538,1770195046271,-465.577874,0.0001466,7]
[404482539,1770195046281,-528.693448,0.0001466,7]
[404482540,1770195046292,-591.809023,0.0001466,7]
[404482541,1770195046302,-654.924598,0.0001466,7]
[404482542,1770195046311,-718.040173,0.0001466,7]
[404482543,1770195046324,-181.08010149,0.00014661,2]
[404482544,1770195046335,-301.1433787,0.00014663,2]
[404482545,1770195046344,-3954.0,0.00014671,2]
[404482546,1770195046355,-206.62328108,0.00014677,2]
[404482547,1770195046364,-500.0,0.00014677,2]
[404482548,1770195046374,-175.34,0.00014677,2]
[404482549,1770195046383,-1103.0,0.000147,2]
[404482550,1770195046393,-1777.88263295,0.00014744,2]
[404482551,1770195046403,-500.0,0.00014745,2]
[404482552,1770195046413,-1513.11,0.00014745,2]
[404482553,1770195046423,-200.0,0.00014766,2]
[404482554,1770195046433,-1513.11,0.00014773,2]
[404482555,1770195046442,-1513.11,0.000148,2]
[404482556,1770195046452,-4093.62846889,0.00014807,2]
[404482557,1770195046461,-1513.11,0.00014827,2]
[404482558,1770195046470,-200.0,0.00014848,2]
[404482559,1770195046479,-1513.11,0.00014854,2]
[404482560,1770195046488,-1513.11,0.00014881,2]
[404482561,1770195046498,-178.6,0.00014903,2]
[404482562,1770195046507,-1513.11,0.00014908,2]
[404482563,1770195046516,-500.0,0.00014918,2]
[404482564,1770195046526,-1513.11,0.00014935,2]
[404482565,1770195046535,-500.0,0.00014951,2]
[404482566,1770195046544,-175.34,0.00014951,2]
[404482567,1770195046554,-1513.11,0.00014963,2]
[404482568,1770195046564,-1513.11,0.0001499,2]
[404482569,1770195046574,-250.0,0.00015,2]
[404482570,1770195046583,-1513.11,0.00015017,2]
[404482571,1770195046593,-5888.0,0.00015026,2]
[404482572,1770195046602,-1513.11,0.00015044,2]
[404482573,1770195046611,-3697.0,0.0001506,2]
[404482574,1770195046620,-257.16,0.00015068,2]
[404482575,1770195046630,-498.26,0.00015068,2]
[404482576,1770195046639,-777.574925,0.00015068,2]
[404482577,1770195046648,-777.574925,0.00015068,2]
[404482578,1770195046657,-777.574925,0.00015068,2]
[404482579,1770195046667,-777.574925,0.00015068,2]
[404482581,1770195046676,-777.574925,0.00015068,2]
[404482582,1770195046685,-777.574925,0.00015068,2]
[404482583,1770195046695,-777.574925,0.00015068,2]
[404482584,1770195046704,-777.574925,0.00015068,2]
[404482585,1770195046718,-777.574925,0.00015068,2]
[404482586,1770195046728,-777.574925,0.00015068,2]
[404482587,1770195046737,-777.574925,0.00015068,2]
[404482588,1770195046746,-777.574925,0.00015068,2]
[404482589,1770195046756,-777.574925,0.00015068,2]
[404482590,1770195046766,-777.574925,0.00015068,2]
[404482591,1770195046775,-777.574925,0.00015068,2]
[404482592,1770195046784,-777.574925,0.00015068,2]
[404482593,1770195046793,-777.574925,0.00015068,2]
[404482594,1770195046803,-777.574925,0.00015068,2]
[404482595,1770195046813,-777.574925,0.00015068,2]
[404482596,1770195046822,-777.574921,0.00015068,2]
[404482597,1770195046832,-1513.11,0.00015071,2]
[404482598,1770195046841,-1513.11,0.00015098,2]
[404482599,1770195046851,-1513.11,0.00015125,2]
[404482600,1770195046861,-157.02,0.00015137,2]
[404482601,1770195046870,-1513.11,0.00015153,2]
[404482602,1770195046879,-1513.11,0.0001518,2]
[404482603,1770195046888,-200.0,0.00015202,2]
[404482604,1770195046898,-1513.11,0.00015207,2]
[404482605,1770195046910,-187.78006525,0.00015209,2]
[404482606,1770195046921,-500.0,0.00015225,2]
[404482607,1770195046932,-175.34,0.00015225,2]
[404482608,1770195046941,-1513.11,0.00015234,2]
[404482609,1770195046951,-1513.11,0.00015261,2]
[404482610,1770195046963,-164.1,0.00015318,2]
[404482611,1770195046972,-4093.62846889,0.00015322,2]
[404482612,1770195046983,-200.0,0.00015362,2]
[404482613,1770195046994,-1000.0,0.00015369,2]
[404482614,1770195047004,-1777.88263295,0.00015375,2]
[404482615,1770195047014,-3697.0,0.00015435,2]
[404482616,1770195047023,-1103.0,0.00015435,2]
[404482617,1770195047033,-200.0,0.00015457,2]
[404482618,1770195047042,-200.0,0.00015459,2]
[404482619,1770195047052,-334.5472959,0.00015482,2]
[404482620,1770195047061,-3697.0,0.00015483,2]
[404482621,1770195047071,-500.0,0.00015499,2]
[404482622,1770195047081,-175.34,0.00015499,2]
[404482623,1770195047091,-530.0,0.00015506,2]
[404482624,1770195047100,-1000.0,0.00015537,2]
[404482625,1770195047113,-168.0,0.00015582,2]
[404482626,1770195047122,-3697.0,0.00015583,2]
[404482627,1770195047133,-164.08,0.000156,2]
[404482628,1770195047142,-163.5,0.000156,2]
[404482629,1770195047152,-238.13,0.00015667,2]
[404482630,1770195047162,-530.0,0.00015669,2]
[404482631,1770195047172,-168.0,0.00015703,2]
[404482632,1770195047182,-530.0,0.00015708,2]
[404482633,1770195047191,-168.0,0.00015709,2]
[404482634,1770195047201,-1000.0,0.00015738,2]
[404482635,1770195047211,-257.16,0.00015753,2]
[404482636,1770195047222,-194.72792766,0.00015757,2]
[404482637,1770195047231,-316.57133444,0.00015773,2]
[404482638,1770195047241,-175.34,0.00015773,2]
[404482640,1770195047252,-168.0,0.00015778,2]
[404482641,1770195047261,-1000.0,0.0001578,2]
[404482642,1770195047271,-168.0,0.00015819,2]
[404482643,1770195047280,-1000.0,0.0001582,2]
[404482644,1770195047291,-168.0,0.00015822,2]
[404482645,1770195047300,-4093.62846889,0.00015838,2]
[404482646,1770195047312,-200.0,0.0001587,2]
[404482647,1770195047322,-200.0,0.00015871,2]
[404482648,1770195047331,-1000.0,0.00015877,2]
[404482649,1770195047341,-727.884332,0.0001589,2]
[404482650,1770195047350,-727.884332,0.0001589,2]
[404482651,1770195047359,-727.884332,0.0001589,2]
[404482652,1770195047369,-727.884332,0.0001589,2]
[404482653,1770195047379,-727.884332,0.0001589,2]
[404482654,1770195047388,-727.884332,0.0001589,2]
[404482655,1770195047399,-727.884332,0.0001589,2]
[404482656,1770195047409,-727.884332,0.0001589,2]
[404482657,1770195047419,-727.884332,0.0001589,2]
[404482658,1770195047428,-727.884332,0.0001589,2]
[404482659,1770195047438,-727.884332,0.0001589,2]
[404482660,1770195047447,-727.884332,0.0001589,2]
[404482661,1770195047456,-727.884332,0.0001589,2]
[404482662,1770195047466,-727.884332,0.0001589,2]
[404482663,1770195047476,-727.884332,0.0001589,2]
[404482664,1770195047485,-727.884332,0.0001589,2]
[404482665,1770195047495,-727.884332,0.0001589,2]
[404482666,1770195047505,-727.884332,0.0001589,2]
[404482667,1770195047515,-727.884332,0.0001589,2]
[404482668,1770195047524,-727.884332,0.0001589,2]
[404482669,1770195047534,-157.02,0.00015894,2]
[404482670,1770195047543,-150.0,0.000159,2]
[404482671,1770195047554,-288.19,0.00015918,2]
[404482672,1770195047564,-1343.0,0.00015991,2]
[404482673,1770195047573,-500.0,0.00015999,2]
[404482674,1770195047583,-41262.69672884,0.00016,4]
[404482675,1770195047592,-1350.0,0.00016,10]
[404482676,1770195047601,-168.0,0.00016001,2]
[404482677,1770195047610,-1777.88263295,0.00016006,2]
[404482678,1770195047620,-433.36,0.00016015,2]
[404482679,1770195047711,-175.34,0.00016047,2]
[404482680,1770195047721,-500.0,0.0001606,2]
[404482681,1770195047730,-1343.0,0.00016075,2]
[404482682,1770195047739,-1343.0,0.00016077,2]
[404482683,1770195047748,-1400.0,0.00016082,2]
[404482684,1770195047757,-1000.0,0.00016082,2]
[404482685,1770195047766,-1000.0,0.00016095,2]
[404482686,1770195047775,-273.94431015,0.00016134,2]
[404482687,1770195047784,-1103.0,0.00016207,2]
[404482688,1770195047793,-1324.0,0.00016226,2]
[404482689,1770195047802,-201.93286099,0.00016305,2]
[404482690,1770195047812,-175.34,0.00016321,2]
[404482691,1770195047821,-1343.0,0.00016351,2]
[404482692,1770195047830,-4093.62846889,0.00016353,2]
[404482693,1770195047839,-500.0,0.00016356,2]
[404482694,1770195047848,-1343.0,0.00016405,2]
[404482695,1770195047857,-273.51,0.0001642,2]
[404482696,1770195047867,-1324.0,0.00016424,2]
[404482697,1770195047875,-257.16,0.00016438,2]
[404482698,1770195047885,-498.26,0.00016438,2]
[404482699,1770195047894,-300.0,0.00016438,3]
[404482700,1770195047903,-300.0,0.00016438,3]
[404482701,1770195047913,-300.0,0.00016438,3]
[404482702,1770195047923,-300.0,0.00016438,3]
[404482703,1770195047933,-300.0,0.00016438,3]
[404482704,1770195047942,-151.0,0.00016438,2]
[404482705,1770195047952,-152.441832,0.00016438,2]
[404482706,1770195047961,-370.61212,0.00016438,2]
[404482707,1770195047971,-370.61212,0.00016438,2]
[404482708,1770195047982,-370.61212,0.00016438,2]
[404482709,1770195047992,-370.61212,0.00016438,2]
[404482710,1770195048001,-370.61212,0.00016438,2]
[404482711,1770195048010,-370.61212,0.00016438,2]
[404482712,1770195048020,-370.61212,0.00016438,2]
[404482713,1770195048029,-370.61212,0.00016438,2]
[404482714,1770195048039,-370.61212,0.00016438,2]
[404482715,1770195048048,-370.61212,0.00016438,2]
[404482716,1770195048057,-370.61212,0.00016438,2]
[404482717,1770195048067,-370.61212,0.00016438,2]
[404482718,1770195048076,-370.61212,0.00016438,2]
[404482719,1770195048085,-370.61212,0.00016438,2]
[404482720,1770195048095,-370.61212,0.00016438,2]
[404482721,1770195048105,-370.61212,0.00016438,2]
[404482722,1770195048115,-370.61212,0.00016438,2]
[404482723,1770195048125,-370.61212,0.00016438,2]
[404482724,1770195048134,-370.61212,0.00016438,2]
[404482725,1770195048144,-370.612117,0.00016438,2]
[404482726,1770195048154,-964.011816,0.00016438,2]
[404482727,1770195048164,-964.011816,0.00016438,2]
[404482728,1770195048174,-964.011816,0.00016438,2]
[404482729,1770195048184,-964.011816,0.00016438,2]
[404482730,1770195048193,-964.011816,0.00016438,2]
[404482731,1770195048203,-964.011816,0.00016438,2]
[404482732,1770195048213,-964.011816,0.00016438,2]
[404482733,1770195048222,-964.011816,0.00016438,2]
[404482734,1770195048232,-964.011816,0.00016438,2]
[404482735,1770195048241,-964.011816,0.00016438,2]
[404482736,1770195048255,-964.011816,0.00016438,2]
[404482737,1770195048264,-964.011816,0.00016438,2]
[404482738,1770195048273,-964.011816,0.00016438,2]
[404482739,1770195048282,-964.011816,0.00016438,2]
[404482740,1770195048291,-964.011816,0.00016438,2]
[404482741,1770195048302,-964.011816,0.00016438,2]
[404482742,1770195048312,-964.011816,0.00016438,2]
[404482743,1770195048324,-964.011816,0.00016438,2]
[404482744,1770195048334,-964.011816,0.00016438,2]
[404482745,1770195048343,-964.011806,0.00016438,2]
[404482746,1770195048353,-151.0,0.00016438,2]
[404482747,1770195048362,-151.0,0.00016438,2]
[404482748,1770195048372,-151.0,0.00016438,2]
[404482749,1770195048383,-151.0,0.00016438,2]
[404482750,1770195048392,-151.0,0.00016438,2]
[404482751,1770195048402,-151.0,0.00016438,2]
[404482752,1770195048411,-151.0,0.00016438,2]
[404482753,1770195048421,-151.0,0.00016438,2]
[404482754,1770195048431,-151.0,0.00016438,2]
[404482755,1770195048440,-151.0,0.00016438,2]
[404482756,1770195048450,-151.0,0.00016438,2]
[404482757,1770195048460,-151.0,0.00016438,2]
[404482758,1770195048469,-151.0,0.00016438,2]
[404482759,1770195048479,-151.0,0.00016438,2]
[404482760,1770195048489,-151.0,0.00016438,2]
[404482761,1770195048499,-303.19,0.00016438,4]
[404482762,1770195048508,-248.57985243,0.00016504,2]
[404482763,1770195048518,-487.0364942,0.00016541,2]
[404482764,1770195048528,-150.0,0.00016576,2]
[404482765,1770195048537,-1000.0,0.00016581,2]
[404482766,1770195048547,-175.34,0.00016595,2]
[404482767,1770195048556,-1000.0,0.00016611,2]
[404482768,1770195048566,-1777.88263295,0.00016637,2]
[404482769,1770195048575,-157.02,0.00016651,2]
[404482770,1770195048585,-165.74,0.00016712,2]
[404482771,1770195048595,-1000.0,0.00016753,2]
[404482772,1770195048605,-1000.0,0.00016762,2]
[404482773,1770195048614,-150.0,0.00016789,2]
[404482774,1770195048623,-1000.0,0.000168,2]
[404482775,1770195048632,-1000.0,0.00016818,2]
[404482776,1770195048641,-346.92554585,0.00016851,2]
[404482777,1770195048651,-287.59995546,0.00016851,2]
[404482778,1770195048660,-209.40437684,0.00016853,2]
[404482779,1770195048670,-4093.62846889,0.00016869,2]
[404482780,1770195048679,-175.34,0.00016869,2]
[404482781,1770195048689,-1000.0,0.00016915,2]
[404482782,1770195048698,-1000.0,0.00016922,2]
[404482783,1770195048707,-1000.0,0.00016943,2]
[404482784,1770195048716,-487.0364942,0.00016954,2]
[404482785,1770195048726,-1335.0,0.00016984,2]
[404482786,1770195048735,-1410.0,0.00016984,2]
[404482787,1770195048744,-3482.0,0.00016984,2]
[404482788,1770195048753,-616.0,0.00016984,2]
[404482789,1770195048762,-150.0,0.00016984,2]
[404482790,1770195048771,-1271.0,0.00016984,2]
[404482791,1770195048781,-917.0,0.00016984,2]
[404482792,1770195048790,-1205.0,0.00016984,2]
[404482793,1770195048799,-675.906,0.00016984,2]
[404482794,1770195048808,-3253.0,0.00016984,2]
[404482795,1770195048817,-6580.0,0.00016984,2]
[404482796,1770195048827,-300.0,0.00016986,4]
[404482797,1770195048836,-402.66175926,0.00016991,2]
[404482798,1770195048846,-200.0,0.00016992,2]
[404482799,1770195048855,-500.0,0.00016999,2]
[404482800,1770195048864,-160.0,0.00017,7]
[404482801,1770195048874,-328.29059147,0.00017,7]
[404482802,1770195048885,-500.0,0.00017,7]
[404482803,1770195048895,-347.48814609,0.00017,7]
[404482804,1770195049214,-152.51185391,0.00017,7]
[404482805,1770195049224,-500.0,0.00017,7]
[404482806,1770195049236,-500.0,0.00017,7]
[404482807,1770195049251,-500.0,0.00017,7]
[404482808,1770195049261,-500.0,0.00017,7]
[404482809,1770195049271,-500.0,0.00017,7]
[404482810,1770195049281,-500.0,0.00017,7]
[404482811,1770195049291,-500.0,0.00017,7]
[404482812,1770195049301,-500.0,0.00017,7]
[404482813,1770195049311,-500.0,0.00017,7]
[404482814,1770195049321,-500.0,0.00017,7]
[404482815,1770195049333,-500.0,0.00017,7]
[404482816,1770195049342,-500.0,0.00017,7]
[404482817,1770195049352,-500.0,0.00017,7]
[404482818,1770195049362,-500.0,0.00017,7]
[404482819,1770195049371,-500.0,0.00017,7]
[404482820,1770195049381,-500.0,0.00017,7]
[404482821,1770195049391,-500.0,0.00017,7]
[404482822,1770195049401,-500.0,0.00017,7]
[404482823,1770195049410,-500.0,0.00017,7]
[404482824,1770195049420,-500.0,0.00017,7]
[404482825,1770195049430,-500.0,0.00017,7]
[404482826,1770195049442,-500.0,0.00017,7]
[404482827,1770195049452,-500.0,0.00017,7]
[404482828,1770195049462,-47.89220508,0.00017,7]
[404482829,1770195049482,-452.10779492,0.00017,7]
[404482830,1770195049491,-500.0,0.00017,7]
[404482831,1770195049501,-500.0,0.00017,7]
[404482832,1770195049511,-500.0,0.00017,7]
[404482833,1770195049520,-500.0,0.00017,7]
[404482834,1770195049530,-500.0,0.00017,7]
[404482835,1770195049540,-500.0,0.00017,7]
[404482836,1770195049550,-500.0,0.00017,7]
[404482837,1770195049559,-500.0,0.00017,7]
[404482838,1770195049568,-165.40506921,0.00017,7]
[404482839,1770195049581,-334.59493079,0.00017,7]
[404482840,1770195049591,-500.0,0.00017,7]
[404482841,1770195049601,-500.0,0.00017,7]
[404482842,1770195049611,-500.0,0.00017,7]
[404482843,1770195049621,-500.0,0.00017,7]
[404482844,1770195049630,-500.0,0.00017,7]
[404482845,1770195049640,-500.0,0.00017,7]
[404482846,1770195049649,-500.0,0.00017,7]
[404482847,1770195049658,-500.0,0.00017,7]
[404482848,1770195049668,-500.0,0.00017,7]
[404482849,1770195049677,-500.0,0.00017,7]
[404482850,1770195049687,-500.0,0.00017,7]
[404482851,1770195049697,-500.0,0.00017,7]
[404482852,1770195049706,-500.0,0.00017,7]
[404482853,1770195049715,-500.0,0.00017,7]
[404482854,1770195049724,-408.8,0.00017,7]
[404482855,1770195049733,-500.0,0.00017,7]
[404482856,1770195049743,-500.0,0.00017,7]
[404482857,1770195049752,-500.0,0.00017,7]
[404482858,1770195049762,-500.0,0.00017,7]
[404482859,1770195049771,-500.0,0.00017,7]
[404482860,1770195049781,-500.0,0.00017,7]
[404482861,1770195049790,-500.0,0.00017,7]
[404482862,1770195049800,-500.0,0.00017,7]
[404482863,1770195049810,-500.0,0.00017,7]
[404482864,1770195049820,-500.0,0.00017,7]
[404482865,1770195049829,-500.0,0.00017,7]
[404482866,1770195049839,-500.0,0.00017,7]
[404482867,1770195049849,-500.0,0.00017,7]
[404482868,1770195049859,-500.0,0.00017,7]
[404482869,1770195049869,-500.0,0.00017,7]
[404482870,1770195049878,-500.0,0.00017,7]
[404482871,1770195049888,-500.0,0.00017,7]
[404482872,1770195049897,-500.0,0.00017,7]
[404482873,1770195049907,-500.0,0.00017,7]
[404482874,1770195049918,-500.0,0.00017,7]
[404482875,1770195049928,-500.0,0.00017,7]
[404482876,1770195049938,-500.0,0.00017,7]
[404482877,1770195049947,-500.0,0.00017,7]
[404482878,1770195049957,-500.0,0.00017,7]
[404482879,1770195049966,-500.0,0.00017,7]
[404482880,1770195049975,-500.0,0.00017,7]
[404482881,1770195049985,-500.0,0.00017,7]
[404482882,1770195049995,-500.0,0.00017,7]
[404482883,1770195050007,-500.0,0.00017,7]
[404482884,1770195050016,-500.0,0.00017,7]
[404482885,1770195050027,-500.0,0.00017,7]
[404482886,1770195050037,-500.0,0.00017,7]
[404482887,1770195050047,-500.0,0.00017,7]
[404482888,1770195050056,-301.652197,0.00017,7]
[404482889,1770195050068,-198.347803,0.00017,7]
[404482890,1770195050078,-500.0,0.00017,7]
[404482891,1770195050095,-500.0,0.00017,7]
[404482892,1770195050106,-500.0,0.00017,7]
[404482893,1770195050115,-500.0,0.00017,7]
[404482894,1770195050124,-500.0,0.00017,7]
[404482895,1770195050134,-500.0,0.00017,7]
[404482896,1770195050143,-500.0,0.00017,7]
[404482897,1770195050153,-500.0,0.00017,7]
[404482898,1770195050162,-500.0,0.00017,7]
[404482899,1770195050172,-500.0,0.00017,7]
[404482900,1770195050181,-160.0,0.00017,7]
[404482901,1770195050191,-500.0,0.00017,7]
[404482902,1770195050200,-500.0,0.00017,7]
[404482903,1770195050209,-500.0,0.00017,7]
[404482904,1770195050219,-500.0,0.00017,7]
[404482905,1770195050228,-500.0,0.00017,7]
[404482906,1770195050238,-500.0,0.00017,7]
[404482907,1770195050249,-21.1185882,0.00017,7]
[404482908,1770195050616,-342.26322073,0.00017,7]
[404482909,1770195050637,-136.61819107,0.00017,7]
[404482910,1770195050647,-363.38180893,0.00017,7]
[404482911,1770195050658,-136.61819107,0.00017,7]
[404482912,1770195050668,-174.97,0.00017,7]
[404482913,1770195050680,-300.0,0.00017,2]
[404482914,1770195050690,-279.38980893,0.00017,7]
[404482915,1770195050710,-220.61019107,0.00017,7]
[404482916,1770195050720,-500.0,0.00017,7]
[404482917,1770195050729,-89.4298983,0.00017017,2]
[404482918,1770195050757,-1013.5701017,0.00017017,2]
[404482919,1770195050767,-1000.0,0.00017019,2]
[404482920,1770195050777,-3856.86348866,0.00017043,7]